bitfinex/quotes_ETHUSD_20250129
["timestamp","ask_amount","ask_price","bid_price","bid_amount"]
[1738154509706,3.20451,3120.6,3120.5,0.07989006]
[1738154510131,6.98754,3121.0,3119.8,0.332]
[1738154510285,3.20509,3120.1,3119.9,0.08041534]
[1738154511309,3.20504,3120.1,3119.9,0.08041534]
[1738154511691,3.20504,3120.1,3119.8,0.55]
[1738154512009,3.20504,3120.1,3119.9,0.08041534]
[1738154512978,3.20483,3120.3,3119.9,0.08041534]
[1738154513180,3.0,3120.4,3120.0,0.55]
[1738154513375,1.98794481,3120.4,3120.0,3.75512]
[1738154513636,1.98794481,3120.4,3119.8,3.25719704]
[1738154513637,1.98794481,3120.4,3120.2,3.75483]
[1738154513781,1.98794481,3120.4,3120.3,2.24773873]
[1738154513982,1.98794481,3120.4,3120.3,2.32808283]
[1738154514427,1.98794481,3120.4,3120.3,37.32808283]
[1738154514593,1.98794481,3120.4,3120.3,2.32808283]
[1738154514987,1.98794481,3120.4,3120.3,37.32808283]
[1738154515292,1.98794481,3120.4,3120.3,1.50558283]
[1738154516094,3.20451,3120.6,3120.4,0.55]
[1738154516283,3.20451,3120.6,3120.5,0.08004268]
[1738154516815,6.40868,3120.8,3120.5,0.08004268]
[1738154517012,3.20443,3120.7,3120.5,0.08004268]
[1738154517805,3.20451,3120.6,3120.5,0.08004268]
[1738154518206,3.2049,3120.3,3119.9,0.336]
[1738154518517,3.2049,3120.3,3119.8,0.37211156]
[1738154518518,3.20518,3120.0,3119.8,0.37211156]
[1738154518724,3.20451,3120.6,3119.7,0.55]
[1738154518725,3.0,3120.5,3119.7,0.55]
[1738154518881,3.20533,3119.8,3119.6,0.05861557]
[1738154520017,3.20521,3120.0,3119.6,0.05861557]
[1738154520183,3.20532,3119.9,3119.6,0.05861557]
[1738154520386,3.20543,3119.7,3119.1,2.7633]
[1738154520706,3.98605,3120.1,3119.1,2.7633]
[1738154520707,3.2058,3119.4,3119.1,2.7633]
[1738154520883,3.2058,3119.4,3119.2,0.55]
[1738154521616,3.2058,3119.4,3118.8,1.1495]
[1738154521825,6.41163,3119.4,3118.9,0.55]
[1738154522010,3.2058,3119.4,3118.9,1.361218]
[1738154522211,6.41163,3119.4,3118.9,1.361218]
[1738154522442,3.2058,3119.4,3118.9,1.361218]
[1738154523843,3.2058,3119.4,3119.1,0.55]
[1738154524059,3.2058,3119.4,3119.0,0.08164493]
[1738154524060,3.20604,3119.2,3119.0,0.08164493]
[1738154524263,3.2062,3119.0,3118.5,2.8222]
[1738154524754,3.2062,3119.0,3118.5,4.02886]
[1738154524963,3.206,3119.2,3118.6,3.20656]
[1738154525351,0.772,3119.4,3118.5,0.8222]
[1738154525527,3.2064,3118.8,3118.3,2.344]
[1738154525726,3.2064,3118.8,3118.2,3.99986]
[1738154525930,3.2064,3118.8,3118.2,0.82496642]
[1738154526123,3.2064,3118.8,3118.2,4.03189642]
[1738154526480,3.2062,3119.0,3118.5,0.55]
[1738154526609,3.0,3119.1,3118.6,0.375674]
[1738154526943,3.97779,3119.4,3118.7,3.78846278]
[1738154527147,3.20579,3119.4,3118.7,3.78846278]
[1738154527322,6.41161,3119.4,3118.8,0.7685]
[1738154527517,3.20579,3119.4,3118.8,0.7685]
[1738154527921,3.20579,3119.4,3118.8,1.58241545]
[1738154528148,3.20585,3119.3,3118.8,1.58241545]
[1738154528447,3.20675,3118.5,3118.2,0.005]
[1738154528946,3.20687,3118.3,3118.2,0.005]
[1738154530052,3.20675,3118.5,3118.2,0.005]
[1738154530340,3.20634,3118.9,3118.2,4.00962]
[1738154530546,3.20634,3118.9,3118.3,0.0811293]
[1738154530766,3.20634,3118.9,3118.3,3.2879993]
[1738154530928,3.20634,3118.9,3118.3,4.01774023]
[1738154531333,0.7733,3119.0,3118.4,3.75671]
[1738154531516,3.97951,3119.0,3118.4,3.83783907]
[1738154532215,3.20627,3118.9,3118.4,0.63108907]
[1738154532542,3.20627,3118.9,3118.6,2.88508548]
[1738154532949,3.20627,3118.9,3118.7,0.08096841]
[1738154533412,3.20636,3118.8,3118.7,0.08096841]
[1738154533832,3.20663,3118.6,3118.3,2.88508548]
[1738154534012,3.20677,3118.4,3118.3,2.88508548]
[1738154534215,3.20677,3118.4,3118.2,0.005]
[1738154534216,3.20687,3118.3,3118.2,0.005]
[1738154534420,3.98197,3118.3,3118.2,0.005]
[1738154534615,3.98197,3118.3,3117.1,0.005]
[1738154534616,3.208,3117.2,3117.1,0.005]
[1738154534821,3.208,3117.2,3117.0,1.12871042]
[1738154534822,3.98321,3117.1,3117.0,4.2e-07]
[1738154535360,3.208,3117.2,3117.0,4.2e-07]
[1738154535361,0.8114,3118.2,3117.0,4.2e-07]
[1738154535540,0.64682139,3117.7,3117.0,4.2e-07]
[1738154535853,3.64682139,3117.7,3117.1,2.88508548]
[1738154536039,3.20722,3118.0,3117.4,2.88508548]
[1738154536239,0.16647834,3118.3,3117.7,2.88508548]
[1738154536444,3.20706,3118.2,3118.1,2.88508548]
[1738154536641,0.16647834,3118.3,3118.1,2.88508548]
[1738154536821,3.20697,3118.2,3117.7,3.43508548]
[1738154537550,0.33732683,3118.3,3117.7,3.43508548]
[1738154537791,3.54419683,3118.3,3117.7,3.43508548]
[1738154537929,3.20714,3118.1,3117.7,2.88508548]
[1738154538131,3.20705,3118.2,3117.7,2.88508548]
[1738154538644,3.20779,3117.5,3116.9,0.00989239]
[1738154538843,3.20802,3117.2,3116.9,0.00989239]
[1738154539051,1.44844853,3117.7,3117.1,3.7936819]
[1738154539254,3.20743,3117.8,3117.4,3.7936819]
[1738154539557,3.8126,3118.1,3117.4,3.7936819]
[1738154539736,3.94281768,3118.1,3117.7,3.7936819]
[1738154539933,3.20676,3118.5,3118.0,3.7936819]
[1738154540860,3.20708,3118.1,3117.7,3.7936819]
[1738154541225,3.2073,3117.9,3117.7,3.7936819]
[1738154541425,3.20749,3117.8,3117.6,0.824]
[1738154541650,3.20749,3117.8,3117.4,3.7936819]
[1738154542107,3.20769,3117.5,3117.4,3.7936819]
[1738154542303,3.208,3117.2,3117.1,3.7936819]
[1738154542464,3.2078,3117.4,3117.0,4.2e-07]
[1738154542846,3.528529,3117.5,3117.1,3.7936819]
[1738154543351,3.20782,3117.4,3117.1,3.7936819]
[1738154543701,3.528529,3117.5,3117.1,3.7936819]
[1738154543850,3.2078,3117.4,3117.1,3.7936819]
[1738154544269,3.208,3117.2,3117.0,4.2e-07]
[1738154544478,3.8815629,3117.3,3117.0,4.2e-07]
[1738154544688,3.20802,3117.2,3117.0,4.2e-07]
[1738154544857,3.20811,3117.1,3117.0,4.2e-07]
[1738154545648,3.20802,3117.2,3117.0,4.2e-07]
[1738154545988,3.20811,3117.1,3117.0,4.2e-07]
[1738154547077,6.20811,3117.1,3117.0,4.2e-07]
[1738154547385,7.225123,3117.1,3117.0,4.2e-07]
[1738154549184,7.39160729,3117.1,3117.0,4.2e-07]
[1738154550385,7.225123,3117.1,3117.0,4.2e-07]
[1738154553089,4.225123,3117.1,3117.0,4.2e-07]
[1738154553396,4.225123,3117.1,3117.0,0.07300057]
[1738154554356,4.225123,3117.1,3117.0,4.2e-07]
[1738154555668,4.225123,3117.1,3117.0,0.073232]
[1738154556287,4.225123,3117.1,3117.0,4.2e-07]
[1738154556489,4.225123,3117.1,3117.0,0.073232]
[1738154556660,4.225123,3117.1,3117.0,4.2e-07]
[1738154557193,4.225123,3117.1,3117.0,0.073232]
[1738154557562,4.225123,3117.1,3117.0,4.2e-07]
[1738154557761,4.225123,3117.1,3117.0,0.073232]
[1738154558460,4.225123,3117.1,3117.0,4.2e-07]
[1738154559966,1.017013,3117.1,3117.0,0.07324775]
[1738154560173,6.41612,3117.2,3117.0,0.07324775]
[1738154560385,3.20802,3117.2,3117.0,0.07324775]
[1738154560590,3.20811,3117.1,3117.0,0.07324775]
[1738154563591,3.20791,3117.3,3117.0,0.07324775]
[1738154563923,0.63873229,3117.4,3117.0,0.07324775]
[1738154564080,3.62467413,3117.3,3117.0,0.07324775]
[1738154565000,6.83267413,3117.3,3117.0,0.07324775]
[1738154565201,3.20775,3117.5,3117.0,0.07324775]
[1738154565602,0.65597662,3117.5,3117.0,3.28136775]
[1738154565788,3.20759,3117.6,3117.0,3.28136775]
[1738154566314,3.20767,3117.6,3117.0,3.28136775]
[1738154566519,3.20771,3117.5,3117.0,3.28136775]
[1738154566694,3.20771,3117.5,3117.0,0.07324775]
[1738154566695,6.41547,3117.5,3117.0,0.07324775]
[1738154566890,3.20782,3117.4,3117.0,0.07324775]
[1738154567505,3.21561,3117.1,3117.0,7.75e-06]
[1738154567708,3.20841,3116.8,3116.6,0.16174978]
[1738154567919,0.8049,3117.4,3116.6,0.16174978]
[1738154568139,3.20852,3116.7,3116.6,0.16174978]
[1738154568741,3.20852,3116.7,3116.6,0.22016365]
[1738154568950,3.850213,3116.7,3116.6,0.16174978]
[1738154569146,4.622813,3116.7,3116.6,0.16174978]
[1738154569639,4.622813,3116.7,3116.6,0.22016365]
[1738154570034,4.622813,3116.7,3116.6,0.16174978]
[1738154571444,6.98453,3116.2,3116.1,0.0008]
[1738154571757,6.99203,3116.2,3116.1,0.0008]
[1738154572235,6.98453,3116.2,3116.1,0.0008]
[1738154572805,6.99203,3116.2,3116.1,0.0008]
[1738154573140,7.74953,3116.2,3116.1,0.0008]
[1738154573434,9.46547768,3116.2,3116.1,0.0008]
[1738154574144,8.70797768,3116.2,3116.1,0.0008]
[1738154574437,3.21036,3115.0,3114.2,0.775]
[1738154574629,3.21054,3114.8,3114.2,0.775]
[1738154574824,3.21031,3115.0,3114.3,0.06040735]
[1738154575024,3.21048,3114.8,3114.3,0.06040735]
[1738154575227,3.21064,3114.7,3114.3,0.06040735]
[1738154575467,3.21064,3114.7,3114.2,0.775]
[1738154575738,3.21048,3114.8,3114.3,0.06040735]
[1738154575902,3.2107,3114.6,3114.2,0.775]
[1738154576240,3.2107,3114.6,3114.3,0.06040735]
[1738154576536,3.2103,3115.0,3114.4,3.21082]
[1738154576735,3.2103,3115.0,3114.4,3.27143415]
[1738154576936,3.85558887,3115.2,3114.4,3.27143415]
[1738154577255,3.85558887,3115.2,3114.4,3.27147415]
[1738154577551,3.85558887,3115.2,3114.5,0.05855335]
[1738154577552,3.20817213,3115.0,3114.5,0.05855335]
[1738154578421,3.21037,3114.9,3114.5,0.05855335]
[1738154578620,0.64185421,3114.9,3114.5,0.05855335]
[1738154578804,3.21064,3114.7,3114.2,0.775]
[1738154579004,3.21064,3114.7,3114.6,0.05980568]
[1738154579294,3.21064,3114.7,3114.2,0.775]
[1738154579404,3.21064,3114.7,3114.6,0.05980568]
[1738154579605,3.852688,3114.7,3114.2,0.775]
[1738154579800,3.21058,3114.7,3114.6,0.05980568]
[1738154580000,3.21069,3114.6,3114.2,0.775]
[1738154581214,6.42104,3114.8,3114.2,0.775]
[1738154581536,3.21081,3114.5,3114.2,0.775]
[1738154581711,3.21106,3114.3,3114.1,0.25]
[1738154582246,3.21081,3114.5,3114.1,0.25]
[1738154582737,3.21094,3114.4,3114.1,0.25]
[1738154582939,3.21081,3114.5,3114.1,0.25]
[1738154583149,3.211,3114.3,3114.1,0.25]
[1738154583373,3.96719,3114.2,3114.1,0.25]
[1738154583661,3.96719,3114.2,3113.5,0.1609414]
[1738154583662,3.21171,3113.6,3113.5,0.1609414]
[1738154583868,3.21131,3114.0,3113.5,0.1609414]
[1738154584159,3.21076,3114.6,3113.7,3.21161]
[1738154584320,3.21076,3114.6,3113.8,3.2115]
[1738154584526,3.21085,3114.5,3113.9,3.21137]
[1738154584720,4.40980269,3114.9,3113.7,3.21161]
[1738154584922,3.21092,3114.4,3113.8,3.21146]
[1738154585246,3.21092,3114.4,3113.9,0.87276574]
[1738154585247,3.21096,3114.4,3113.9,0.87276574]
[1738154585610,3.21058,3114.7,3114.2,3.21108]
[1738154585766,0.7561,3115.2,3114.2,3.21108]
[1738154585767,0.7561,3115.2,3114.4,3.21082]
[1738154585925,3.85041276,3115.2,3114.6,0.773]
[1738154586127,1.98174731,3115.0,3114.6,0.773]
[1738154586442,1.98174731,3115.0,3114.7,0.05544378]
[1738154588051,5.19202731,3115.0,3114.7,0.05544378]
[1738154588622,1.98174731,3115.0,3114.7,0.05544378]
[1738154588949,1.98174731,3115.0,3114.7,3.26601378]
[1738154589155,3.0,3115.3,3114.8,3.21046]
[1738154589358,6.20996,3115.3,3114.8,3.26586346]
[1738154589521,6.20996,3115.3,3114.8,0.05540346]
[1738154589722,6.20996,3115.3,3114.7,3.2105]
[1738154589917,6.20996,3115.3,3114.9,0.05536314]
[1738154590122,6.20996,3115.3,3114.7,3.2105]
[1738154590318,3.21008,3115.2,3114.8,0.05540346]
[1738154590525,6.42023,3115.2,3114.6,3.9836]
[1738154590755,3.21008,3115.2,3114.7,0.05544378]
[1738154591391,3.21021,3115.1,3114.7,0.05544378]
[1738154591700,3.20992,3115.4,3114.7,0.05544378]
[1738154591990,3.20992,3115.4,3114.8,3.21047]
[1738154592287,6.41985,3115.4,3114.8,3.26550003]
[1738154592495,3.20992,3115.4,3114.8,3.26550003]
[1738154592690,3.20998,3115.3,3114.8,3.26550003]
[1738154592866,3.20998,3115.3,3114.8,0.05503003]
[1738154593070,3.20965,3115.6,3115.1,3.21015]
[1738154593267,1.98174731,3115.7,3115.1,3.21015]
[1738154593468,1.98174731,3115.7,3115.2,2.94666108]
[1738154593791,1.98174731,3115.7,3115.3,3.20988]
[1738154593958,1.98174731,3115.7,3115.3,3.26432984]
[1738154594158,1.98174731,3115.7,3115.5,6.1017768]
[1738154594423,1.98174731,3115.7,3115.6,3.20965]
[1738154594617,1.98174731,3115.7,3115.6,3.81384751]
[1738154594761,1.98174731,3115.7,3115.6,4.59134751]
[1738154595462,1.98174731,3115.7,3115.6,4.59884751]
[1738154595670,1.98174731,3115.7,3115.6,5.86890994]
[1738154596296,1.98174731,3116.3,3116.1,3.20913]
[1738154596664,1.98174731,3116.3,3116.2,0.05395577]
[1738154597060,1.98174731,3116.3,3115.7,3.20948]
[1738154597267,1.98174731,3116.3,3116.2,0.05395577]
[1738154597470,1.98174731,3116.3,3116.0,3.20924]
[1738154597666,1.98174731,3116.3,3116.2,0.05395577]
[1738154597876,1.98174731,3116.3,3116.1,0.05399605]
[1738154598225,1.98174731,3116.3,3116.2,0.05395577]
[1738154598386,1.98174731,3116.3,3116.2,0.8294]
[1738154598559,1.98174731,3116.3,3116.2,4.49623177]
[1738154599082,1.98174731,3116.3,3116.2,10.05373177]
[1738154599485,1.98174731,3116.3,3116.2,10.00003177]
[1738154599682,3.20793,3117.3,3116.7,3.20846]
[1738154600087,3.20793,3117.3,3116.8,0.05308879]
[1738154600297,3.528723,3117.3,3116.8,0.05308879]
[1738154600676,0.320793,3117.3,3116.9,3.2083]
[1738154600877,0.320793,3117.3,3116.8,0.83298879]
[1738154601067,0.320793,3117.3,3117.0,0.05300826]
[1738154601401,0.320793,3117.3,3117.1,0.052968]
[1738154601586,0.320793,3117.3,3116.3,3.20889]
[1738154601587,3.20833,3116.9,3116.4,0.8292]
[1738154601788,0.320833,3116.9,3116.4,0.8292]
[1738154601986,0.320833,3116.9,3116.5,3.20868]
[1738154602680,3.20842,3116.8,3116.4,0.8292]
[1738154602887,3.20874,3116.5,3116.0,0.7703]
[1738154603292,6.41756,3116.5,3116.0,0.7703]
[1738154603490,0.641756,3116.4,3116.0,0.7703]
[1738154603806,3.20874,3116.5,3116.0,0.7703]
[1738154604103,0.320833,3116.9,3116.4,3.20881]
[1738154604403,3.20814,3117.1,3116.5,3.20866]
[1738154604904,3.20825,3117.0,3116.4,3.20875]
[1738154605105,3.20806,3117.2,3116.6,3.20855]
[1738154605397,3.20806,3117.2,3116.4,3.20879]
[1738154605569,3.20821,3117.0,3116.5,3.20871]
[1738154605765,3.20821,3117.0,3116.4,3.20875]
[1738154606088,3.20806,3117.2,3116.7,0.8082]
[1738154606271,4.02418381,3117.2,3116.7,0.8082]
[1738154606466,3.20814,3117.1,3116.6,3.20853]
[1738154606672,3.20822,3117.0,3116.5,3.20868]
[1738154607382,4.02418381,3117.2,3116.5,3.20868]
[1738154607697,3.20811,3117.1,3116.5,3.20864]
[1738154607909,0.72322938,3117.0,3116.5,3.20864]
[1738154608072,1.74532814,3117.3,3116.8,3.20833]
[1738154608271,0.63383514,3117.3,3116.8,3.20833]
[1738154608506,3.20792,3117.3,3116.7,3.2085]
[1738154609209,3.20801,3117.2,3116.6,3.20861]
[1738154609771,7.05336435,3117.4,3116.7,3.20842]
[1738154609994,3.91330644,3117.3,3116.7,3.20842]
[1738154610396,0.70533644,3117.3,3116.9,3.20831]
[1738154611178,0.70533644,3117.3,3117.0,3.20818]
[1738154611390,0.63765435,3117.4,3116.9,3.20831]
[1738154611573,3.20742,3117.8,3117.1,4.01068]
[1738154611787,4.58978699,3118.0,3117.3,3.20783]
[1738154612108,7.79703699,3118.0,3117.4,3.20777]
[1738154612409,4.58978699,3118.0,3117.4,3.20777]
[1738154612614,3.20716,3118.1,3117.4,3.2077]
[1738154612907,7.055849,3118.0,3117.4,3.2077]
[1738154613111,7.055849,3118.0,3117.2,3.208]
[1738154613112,3.20735,3117.9,3117.3,3.20785]
[1738154613509,3.20739,3117.8,3117.3,3.20785]
[1738154613676,3.848599,3118.0,3117.4,3.25961262]
[1738154613874,3.2073,3117.9,3117.4,3.25961262]
[1738154614110,3.97835061,3117.9,3117.4,3.25961262]
[1738154616328,3.97835061,3117.9,3117.4,0.05182262]
[1738154616618,3.2074,3117.8,3117.3,3.20788]
[1738154616831,0.77105061,3117.9,3117.5,0.05126774]
[1738154617028,0.77105061,3117.9,3117.5,3.20761]
[1738154617237,3.86173709,3118.1,3117.6,3.25880749]
[1738154617434,3.86173709,3118.1,3117.6,0.05122749]
[1738154617640,7.06891709,3118.1,3117.5,3.20769]
[1738154617805,7.06891709,3118.1,3117.7,0.05118725]
[1738154618127,3.20719,3118.0,3117.5,3.20769]
[1738154618281,3.91408271,3118.0,3117.8,0.05114701]
[1738154618485,3.91408271,3118.0,3117.5,3.20769]
[1738154618680,3.91408271,3118.0,3117.9,0.05110677]
[1738154618887,3.91408271,3118.0,3117.5,3.20769]
[1738154619125,3.91408271,3118.0,3117.9,0.05110677]
[1738154619721,3.91408271,3118.0,3117.5,3.20769]
[1738154620022,0.70689271,3118.0,3117.5,3.20769]
[1738154620227,0.70689271,3118.0,3117.6,0.05122749]
[1738154620526,3.91407271,3118.0,3117.6,0.05122749]
[1738154620901,0.70689271,3118.0,3117.6,0.05122749]
[1738154621340,0.70689271,3118.0,3117.6,3.25881749]
[1738154622014,0.70689271,3118.0,3117.6,6.46634749]
[1738154622181,0.65460709,3118.1,3117.6,6.46634749]
[1738154622385,0.65460709,3118.1,3117.6,3.25875749]
[1738154622586,0.65460709,3118.1,3117.7,3.20747]
[1738154623010,0.65460709,3118.1,3117.7,3.25865725]
[1738154623239,3.20668,3118.5,3117.9,3.20721]
[1738154623522,0.65643112,3118.4,3118.0,3.20716]
[1738154623836,3.20668,3118.5,3118.0,3.25822653]
[1738154624417,3.20668,3118.5,3118.0,6.46533653]
[1738154624624,0.6297297,3118.6,3118.0,3.25817653]
[1738154624936,4.612518,3118.7,3118.2,3.20692]
[1738154624937,1.406038,3118.7,3118.2,3.20692]
[1738154625137,3.827108,3118.7,3118.2,3.20692]
[1738154625437,3.827108,3118.7,3118.3,0.05014988]
[1738154625603,0.620638,3118.7,3118.3,3.20686]
[1738154625804,0.620638,3118.7,3118.4,0.05010965]
[1738154626841,3.827158,3118.7,3118.4,0.05010965]
[1738154627043,3.827158,3118.7,3118.2,6.41385]
[1738154627242,3.20652,3118.7,3118.5,0.05006943]
[1738154627542,3.20652,3118.7,3118.2,3.20689]
[1738154627743,3.20652,3118.7,3118.6,0.0500292]
[1738154628041,3.20656,3118.6,3118.1,3.20704]
[1738154628640,3.20656,3118.6,3118.2,0.0501901]
[1738154628841,3.20656,3118.6,3118.1,3.20704]
[1738154629004,3.20666,3118.6,3118.3,0.05014988]
[1738154629204,3.20686,3118.4,3117.8,4.01619]
[1738154629402,6.41372,3118.4,3117.8,4.01619]
[1738154629637,3.20686,3118.4,3117.8,4.01619]
[1738154629818,3.527346,3118.5,3118.0,3.20715]
[1738154630021,3.20669,3118.5,3118.0,3.20715]
[1738154630237,3.20678,3118.4,3117.9,3.20728]
[1738154632144,3.20678,3118.4,3117.9,6.41451]
[1738154632316,3.20678,3118.4,3117.8,0.8089]
[1738154632525,0.8045,3118.4,3117.4,0.8232]
[1738154632833,0.8045,3117.7,3116.8,2.89049557]
[1738154633039,3.20788,3117.4,3116.8,3.20837]
[1738154634608,3.20792,3117.3,3116.8,3.20837]
[1738154634827,3.20802,3117.2,3116.7,0.8232]
[1738154635030,3.2083,3117.0,3116.4,4.0062]
[1738154635234,3.20849,3116.8,3116.2,6.09949557]
[1738154635560,0.7802,3117.1,3116.1,0.7974]
[1738154635561,3.20881,3116.5,3116.1,0.7974]
[1738154635704,3.20865,3116.6,3115.9,6.09983557]
[1738154636047,3.20865,3116.6,3116.0,3.20921]
[1738154636822,3.20865,3116.6,3116.1,3.20911]
[1738154637021,3.20865,3116.6,3116.0,3.20921]
[1738154637231,3.20865,3116.6,3115.9,3.20931]
[1738154637440,3.20865,3116.6,3116.0,3.20924]
[1738154637805,3.20865,3116.6,3116.1,3.20912]
[1738154638042,3.20845,3116.8,3116.0,3.20924]
[1738154638043,6.41696,3116.8,3116.2,3.20903]
[1738154638222,3.850146,3116.8,3116.2,3.20903]
[1738154638420,3.20825,3117.0,3116.4,3.20878]
[1738154638640,3.20825,3117.0,3116.4,3.20876]
[1738154638809,3.20825,3117.0,3116.5,3.2087]
[1738154639005,3.20835,3116.9,3116.4,3.98386]
[1738154639418,3.20848,3116.8,3116.0,3.98431]
[1738154639622,3.20848,3116.8,3116.0,3.98427]
[1738154640035,6.41697,3116.8,3116.2,3.20901]
[1738154640247,3.20853,3116.7,3116.2,3.20901]
[1738154640543,6.41699,3116.8,3116.1,3.20908]
[1738154640759,3.20854,3116.7,3116.1,3.20908]
[1738154641328,3.20864,3116.6,3116.1,3.20912]
[1738154642151,0.71367,3116.7,3116.1,3.20912]
[1738154642462,3.20848,3116.8,3116.2,3.20902]
[1738154642644,3.85962334,3117.0,3116.4,3.20873]
[1738154642820,3.20825,3117.0,3116.4,6.41749]
[1738154643021,3.20825,3117.0,3116.4,3.20873]
[1738154643660,4.41019052,3117.1,3116.6,3.20859]
[1738154643825,4.41019052,3117.1,3116.7,0.05147327]
[1738154644238,3.20841,3116.8,3116.2,3.20897]
[1738154644441,3.20848,3116.8,3116.2,3.20897]
[1738154644641,3.20821,3117.0,3116.4,3.20874]
[1738154644928,3.20821,3117.0,3116.5,0.05150654]
[1738154645643,3.20821,3117.0,3116.5,3.26017654]
[1738154646042,4.41019052,3117.1,3116.5,4.03497654]
[1738154646240,7.61833052,3117.1,3116.5,4.03497654]
[1738154648170,3.20827,3117.0,3116.5,0.82630654]
[1738154648836,3.62999052,3117.1,3116.6,3.2086]
[1738154649047,3.62999052,3117.1,3116.7,0.05165703]
[1738154649048,6.83812052,3117.1,3116.7,0.05165703]
[1738154649254,3.83812052,3117.1,3116.5,3.98348]
[1738154649562,3.2077,3117.5,3116.8,2.89049557]
[1738154649763,0.7531,3118.3,3117.2,3.208]
[1738154649930,3.20705,3118.2,3117.6,3.20752]
[1738154650266,0.65153878,3118.1,3117.9,3.2072]
[1738154650453,3.20667,3118.5,3118.0,0.05114426]
[1738154650636,3.20678,3118.4,3117.9,3.2072]
[1738154650965,3.20678,3118.4,3118.0,0.05114426]
[1738154651153,6.41362,3118.4,3118.0,0.05114426]
[1738154651464,6.41362,3118.4,3118.1,0.05110403]
[1738154651963,3.20689,3118.3,3117.7,6.09791557]
[1738154652139,3.20689,3118.3,3118.2,0.0510638]
[1738154652339,3.20689,3118.3,3117.7,6.09791557]
[1738154652535,3.20689,3118.3,3118.2,0.0510638]
[1738154652739,6.41385,3118.3,3117.7,6.09791557]
[1738154652950,3.20689,3118.3,3118.2,0.0510638]
[1738154653164,3.20689,3118.3,3117.7,9.30532557]
[1738154653325,3.20689,3118.3,3118.2,0.0510638]
[1738154653526,3.20724,3118.0,3117.5,0.7546]
[1738154654257,3.20717,3118.1,3117.5,3.9622]
[1738154654429,3.20717,3118.1,3117.6,3.20757]
[1738154654652,3.20692,3118.3,3117.7,3.20741]
[1738154655447,7.04286634,3118.5,3117.8,3.20733]
[1738154655689,3.2068,3118.4,3117.8,3.20733]
[1738154656398,3.20659,3118.6,3118.0,3.2071]
[1738154656555,3.2067,3118.5,3117.9,3.20721]
[1738154656873,0.8131,3118.7,3117.9,3.20721]
[1738154656874,0.63347922,3118.6,3118.1,3.20705]
[1738154657052,0.63347922,3118.6,3118.1,6.4141]
[1738154657252,0.63347922,3118.6,3118.1,3.20705]
[1738154657652,6.41264,3118.9,3118.3,3.20687]
[1738154657887,3.20639,3118.8,3118.3,3.20687]
[1738154658062,4.228464,3118.9,3118.3,3.20687]
[1738154658279,6.41264,3118.9,3118.3,3.20687]
[1738154658673,3.84607845,3118.9,3118.4,0.05018534]
[1738154658877,3.84607845,3118.9,3118.4,3.25688534]
[1738154659084,3.20607,3119.1,3118.6,4.02955]
[1738154659292,3.8403835,3119.1,3118.6,4.02955]
[1738154659491,3.20587,3119.3,3118.8,3.2063]
[1738154659675,3.20575,3119.4,3118.9,3.20622]
[1738154659876,3.20575,3119.4,3118.9,3.25521218]
[1738154660555,3.20575,3119.4,3118.9,0.04899218]
[1738154660802,3.20599,3119.2,3118.9,0.04899218]
[1738154660973,3.20599,3119.2,3118.7,3.20645]
[1738154661156,3.20599,3119.2,3119.0,0.04858667]
[1738154661364,3.20599,3119.2,3118.7,3.20645]
[1738154661584,3.20599,3119.2,3119.1,0.04854646]
[1738154661771,3.20599,3119.2,3118.7,3.20645]
[1738154661970,3.20599,3119.2,3119.1,0.04854646]
[1738154662171,3.20599,3119.2,3118.7,3.20645]
[1738154662373,3.20599,3119.2,3119.1,0.04854646]
[1738154662573,3.20585,3119.3,3118.7,3.20645]
[1738154662774,3.20585,3119.3,3119.1,0.04854646]
[1738154662968,3.20585,3119.3,3118.7,3.20645]
[1738154663193,3.20585,3119.3,3119.2,0.04850625]
[1738154663399,3.20585,3119.3,3118.7,3.20645]
[1738154663593,3.20585,3119.3,3119.2,0.04850625]
[1738154663774,3.20585,3119.3,3118.7,3.20645]
[1738154663971,3.20575,3119.4,3118.9,3.20623]
[1738154664368,0.63996097,3119.5,3119.0,3.25466667]
[1738154664569,3.20585,3119.3,3119.0,0.04858667]
[1738154664800,3.20605,3119.1,3119.0,0.04858667]
[1738154664999,3.20643,3118.8,3118.1,3.20699]
[1738154665191,3.20643,3118.8,3118.2,3.20689]
[1738154665762,0.4640911,3119.3,3118.3,2.89049557]
[1738154666099,0.7951,3119.4,3118.8,3.20628]
[1738154666265,0.7951,3119.4,3118.8,3.20627]
[1738154666470,0.63996097,3119.5,3118.9,2.89049557]
[1738154666690,0.63996097,3119.5,3119.0,0.7827]
[1738154666998,4.02515,3119.7,3119.0,0.7827]
[1738154667389,3.20557,3119.6,3119.0,0.7827]
[1738154667789,3.20574,3119.4,3119.0,0.7827]
[1738154670611,6.41143,3119.5,3118.9,3.20622]
[1738154670815,3.20576,3119.4,3118.9,3.20622]
[1738154671114,3.20588,3119.3,3118.7,4.01971]
[1738154672171,3.20588,3119.3,3118.8,3.20634]
[1738154672775,3.20588,3119.3,3118.8,6.41264]
[1738154673009,3.20588,3119.3,3118.8,7.135234]
[1738154673349,3.20588,3119.3,3118.8,3.928894]
[1738154673677,6.41141,3119.5,3118.9,3.25266249]
[1738154674015,3.20577,3119.4,3118.9,3.25266249]
[1738154674309,3.20577,3119.4,3118.9,0.04641249]
[1738154674509,3.20577,3119.4,3118.9,0.04424461]
[1738154674709,3.20568,3119.5,3118.9,0.04424461]
[1738154674710,3.20568,3119.5,3118.9,3.25049461]
[1738154675705,0.6346548,3119.6,3119.1,3.206]
[1738154675882,3.20548,3119.7,3119.2,0.04625107]
[1738154676217,3.84573045,3119.7,3119.2,0.85725107]
[1738154676416,3.2058,3119.4,3119.2,0.04625107]
[1738154676792,3.2058,3119.4,3118.9,4.0172]
[1738154676983,3.20563,3119.6,3119.3,0.04621087]
[1738154677185,3.91076705,3119.6,3119.0,3.20614]
[1738154677418,3.91076705,3119.6,3119.4,0.04617067]
[1738154677717,3.91076705,3119.6,3119.5,0.04609901]